bitfinex-derivatives/quotes_SOLF0:USTF0_20260204
["timestamp","ask_amount","ask_price","bid_price","bid_amount"]
[1770221221676,2.11830359,92.702,92.566,151.4768]
[1770221221677,2.02387453,92.699,92.599,3.63469893]
[1770221221879,2.02387453,92.679,92.575,3.63469893]
[1770221222182,8.17507203,92.7,92.575,3.63469893]
[1770221222382,2.02387453,92.699,92.59,8.17507203]
[1770221222577,9.726,92.679,92.591,3.63469893]
[1770221222976,9.7248,92.69,92.611,3.63469893]
[1770221223781,2.02387453,92.699,92.614,3.63469893]
[1770221223782,9.7258,92.681,92.614,3.63469893]
[1770221223978,2.02387453,92.699,92.614,3.63469893]
[1770221224775,9.7279,92.661,92.614,3.63469893]
[1770221224972,1.94059921,92.679,92.578,3.63469893]
[1770221225373,1.94059921,92.679,92.555,186.0]
[1770221225374,9.7296,92.645,92.58,3.63469893]
[1770221225675,1.88650608,92.658,92.58,3.63469893]
[1770221226578,1.88650608,92.658,92.582,9.736]
[1770221226782,1.88650608,92.658,92.583,3.63469893]
[1770221227078,1.88650608,92.686,92.583,3.63469893]
[1770221227278,9.7269,92.671,92.591,3.63469893]
[1770221227582,1.88676403,92.67,92.591,3.63469893]
[1770221227972,9.7252,92.686,92.606,3.63469893]
[1770221228176,1.88676403,92.695,92.606,3.63469893]
[1770221228588,1.88676403,92.666,92.588,9.7355]
[1770221229386,1.88424901,92.694,92.598,3.63469893]
[1770221229778,1.88424901,92.694,92.584,86.14]
[1770221229779,1.88424901,92.694,92.601,3.63469893]
[1770221229983,1.88424901,92.694,92.625,9.7316]
[1770221230182,1.88424901,92.694,92.601,3.63469893]
[1770221230582,1.88424901,92.679,92.606,13.36819893]
[1770221230785,1.88424901,92.679,92.585,3.63469893]
[1770221230973,9.7282,92.658,92.593,9.7349]
[1770221231380,1.88424901,92.679,92.585,3.63469893]
[1770221232183,32.43,92.709,92.585,3.63469893]
[1770221232184,1.9018272,92.659,92.585,3.63469893]
[1770221232984,9.7289,92.651,92.594,9.7348]
[1770221233286,1.9018272,92.659,92.585,3.63469893]
[1770221233478,1.9018272,92.659,92.563,3.63469893]
[1770221233677,1.9018272,92.659,92.566,3.63469893]
[1770221233881,2.03934114,92.639,92.553,182.02]
[1770221234183,9.7325,92.617,92.554,9.739]
[1770221234489,2.03934114,92.639,92.554,3.63469893]
[1770221234676,9.7303,92.638,92.554,3.63469893]
[1770221235078,2.06900947,92.659,92.554,3.63469893]
[1770221235280,2.06900947,92.639,92.563,3.63469893]
[1770221235482,2.06900947,92.639,92.543,3.63469893]
[1770221236080,9.7331,92.611,92.557,9.7387]
[1770221237685,9.7331,92.611,92.558,3.63469893]
[1770221238285,9.7319,92.623,92.561,3.63469893]
[1770221238686,9.7347,92.596,92.539,13.37529893]
[1770221238886,2.08146254,92.617,92.539,3.63469893]
[1770221239085,2.04444289,92.599,92.481,3.63469893]
[1770221239283,2.04444289,92.599,92.483,3.63469893]
[1770221239686,8.17507203,92.62,92.511,3.63469893]
[1770221239888,2.04444289,92.619,92.511,3.63469893]
[1770221240189,9.737,92.574,92.513,3.63469893]
[1770221240392,2.04444289,92.579,92.491,3.63469893]
[1770221240587,2.04444289,92.559,92.469,3.63469893]
[1770221240792,9.7413,92.533,92.469,3.63469893]
[1770221240992,2.04444289,92.559,92.469,3.63469893]
[1770221241188,9.7392,92.553,92.479,9.747]
[1770221241489,9.7392,92.553,92.48,3.63469893]
[1770221242290,2.18373904,92.559,92.48,3.63469893]
[1770221242786,9.7402,92.544,92.48,3.63469893]
[1770221242988,2.18373904,92.559,92.48,3.63469893]
[1770221243392,2.18373904,92.559,92.482,3.63469893]
[1770221243790,8.17507203,92.58,92.482,3.63469893]
[1770221243987,104.68,92.634,92.45,14.17507203]
[1770221243988,2.37054119,92.603,92.497,3.78954112]
[1770221244185,2.37054119,92.603,92.499,3.78954112]
[1770221245288,2.38109678,92.651,92.541,3.78954112]
[1770221245489,2.38109678,92.651,92.551,3.78954112]
[1770221245984,8.17507203,92.67,92.583,3.78954112]
[1770221246187,2.38109678,92.673,92.583,3.78954112]
[1770221246686,2.38109678,92.673,92.588,9.7355]
[1770221246892,2.38109678,92.698,92.588,3.78954112]
[1770221247187,19.09187282,92.755,92.552,151.4992]
[1770221247188,2.33615922,92.721,92.591,3.78954112]
[1770221247392,2.33615922,92.721,92.589,86.2]
[1770221247393,2.33615922,92.721,92.64,13.51954112]
[1770221247788,2.33615922,92.721,92.65,9.729]
[1770221247994,2.33615922,92.721,92.63,86.2]
[1770221248181,2.33615922,92.709,92.596,3.78954112]
[1770221248497,2.33615922,92.688,92.596,3.78954112]
[1770221248792,2.33615922,92.686,92.596,3.78954112]
[1770221249088,2.34181771,92.669,92.57,3.78954112]
[1770221249396,2.34181771,92.669,92.511,151.5673]
[1770221249397,2.34181771,92.629,92.548,3.78954112]
[1770221249588,2.34181771,92.627,92.548,3.78954112]
[1770221249893,2.34181771,92.609,92.548,9.7397]
[1770221250195,2.34181771,92.609,92.525,3.78954112]
[1770221250494,2.34181771,92.609,92.545,9.74]
[1770221250693,2.34181771,92.609,92.525,3.78954112]
[1770221250993,2.34181771,92.589,92.502,3.78954112]
[1770221251192,2.34181771,92.586,92.516,9.743]
[1770221251390,8.17507203,92.61,92.502,3.78954112]
[1770221251588,2.33415876,92.607,92.502,3.78954112]
[1770221251789,8.17507203,92.61,92.502,3.78954112]
[1770221251790,2.33415876,92.605,92.502,3.78954112]
[1770221251988,2.33415876,92.603,92.502,3.78954112]
[1770221252183,2.33415876,92.601,92.502,3.78954112]
[1770221252391,12.06855876,92.599,92.526,9.742]
[1770221252684,8.30165361,92.598,92.502,3.78954112]
[1770221252892,2.33415876,92.599,92.485,191.96]
[1770221252893,8.30165361,92.597,92.536,9.7409]
[1770221253091,2.33415876,92.599,92.536,9.7409]
[1770221253591,8.31108695,92.598,92.536,9.7409]
[1770221253789,8.31109513,92.597,92.529,3.78954112]
[1770221253986,2.32224625,92.595,92.507,3.78954112]
[1770221254192,2.32224625,92.589,92.507,3.78954112]
[1770221254392,9.7363,92.581,92.507,13.53344112]
[1770221254692,8.31109513,92.58,92.507,3.78954112]
[1770221254991,2.32224625,92.587,92.519,13.53234112]
[1770221256098,2.32230537,92.585,92.485,3.78954112]
[1770221256286,2.32230537,92.569,92.485,3.78954112]
[1770221256686,9.7364,92.58,92.504,3.78954112]
[1770221256895,9.7372,92.572,92.504,3.78954112]
[1770221257189,8.29878304,92.571,92.504,3.78954112]
[1770221257397,9.7386,92.559,92.504,3.78954112]
[1770221257592,8.29878304,92.558,92.504,3.78954112]
[1770221257794,2.31030437,92.571,92.504,3.78954112]
[1770221257994,8.29471215,92.57,92.504,3.78954112]
[1770221258186,8.29471215,92.569,92.504,13.53384112]
[1770221258388,8.29471215,92.568,92.504,3.78954112]
[1770221258595,12.04770437,92.571,92.461,3.78954112]
[1770221258596,8.29471215,92.567,92.461,3.78954112]
[1770221258894,9.81462494,92.587,92.493,3.78954112]
[1770221259098,151.3346,92.654,92.493,3.78954112]
[1770221259099,3.60043898,92.606,92.493,3.78954112]
[1770221259398,9.81462494,92.621,92.493,3.78954112]
[1770221259399,3.60043898,92.57,92.493,3.78954112]
[1770221260192,3.60043898,92.564,92.493,13.53504112]
[1770221260699,3.60043898,92.564,92.493,3.78954112]
[1770221260898,3.60043898,92.564,92.494,9.7454]
[1770221261593,3.60043898,92.551,92.483,9.7465]
[1770221262696,3.60043898,92.549,92.472,9.7476]
[1770221262904,3.60043898,92.539,92.436,231.24]
[1770221263094,3.60043898,92.519,92.436,235.02954112]
[1770221263291,3.60043898,92.514,92.436,3.78954112]
[1770221263699,3.60043898,92.514,92.402,3.78954112]
[1770221263899,9.7458,92.491,92.425,9.7526]
[1770221265099,9.7443,92.505,92.436,9.7514]
[1770221265294,3.60043898,92.504,92.436,9.7514]
[1770221265602,3.60043898,92.504,92.423,3.78954112]
[1770221266103,9.7459,92.49,92.423,3.78954112]
[1770221266303,3.60043898,92.499,92.423,3.78954112]
[1770221266505,3.60043898,92.468,92.402,9.7551]
[1770221267903,3.60043898,92.468,92.376,1.88254641]
[1770221267904,3.60043898,92.468,92.408,9.7545]
[1770221268301,3.60043898,92.482,92.409,3.78954112]
[1770221268906,8.17507203,92.45,92.364,3.78954112]
[1770221269201,3.60043898,92.449,92.364,3.78954112]
[1770221269402,13.35533898,92.404,92.346,1.88330032]
[1770221269607,3.60043898,92.428,92.347,3.78954112]
[1770221270300,3.60043898,92.428,92.324,3.78954112]
[1770221270505,3.60043898,92.409,92.324,3.78954112]
[1770221270698,3.60043898,92.398,92.324,3.78954112]
[1770221272606,3.60043898,92.383,92.302,3.78954112]
[1770221273107,3.60043898,92.383,92.313,9.7644]
[1770221273812,3.60043898,92.383,92.324,9.7633]
[1770221274008,3.68980352,92.405,92.302,3.78954112]
[1770221274204,3.68980352,92.405,92.311,3.77560784]
[1770221274404,3.68980352,92.405,92.344,9.7611]
[1770221274605,3.68980352,92.434,92.336,3.77560784]
[1770221275505,3.68980352,92.434,92.366,9.7588]
[1770221276506,3.68980352,92.434,92.357,3.77560784]
[1770221276712,3.68980352,92.429,92.335,104.48]
[1770221276905,3.68980352,92.429,92.335,108.25560784]
[1770221277110,13.44360352,92.414,92.335,3.77560784]
[1770221277612,3.68980352,92.414,92.35,9.7605]
[1770221278005,11.00739059,92.474,92.351,3.87366829]
[1770221278208,8.20290972,92.488,92.351,3.87366829]
[1770221278209,9.7519,92.433,92.36,9.7595]
[1770221278410,3.93742948,92.429,92.313,3.87366829]
[1770221278911,3.93742948,92.422,92.347,9.7609]
[1770221279705,3.93742948,92.42,92.336,9.7621]
[1770221280101,3.93742948,92.407,92.336,9.7621]
[1770221280303,3.93742948,92.407,92.311,3.87366829]
[1770221280711,3.93742948,92.429,92.329,3.87366829]
[1770221280906,3.93742948,92.451,92.364,3.87366829]
[1770221281411,151.5625,92.515,92.33,230.2]
[1770221281412,3.93742948,92.499,92.381,3.87366829]
[1770221281606,3.93742948,92.519,92.387,3.87366829]
[1770221281806,9.7461,92.488,92.423,9.7529]
[1770221282013,3.93742948,92.499,92.423,9.7529]
[1770221282211,3.93742948,92.499,92.408,3.87366829]
[1770221282614,3.93742948,92.495,92.408,3.87366829]
[1770221282816,3.93742948,92.539,92.431,3.87366829]
[1770221283018,3.93742948,92.539,92.473,9.7476]
[1770221283417,3.93742948,92.539,92.44,3.87366829]
[1770221283611,3.93742948,92.537,92.462,9.7487]
[1770221283817,11.04250121,92.583,92.44,3.87366829]
[1770221283818,3.93742948,92.559,92.44,3.87366829]
[1770221284017,3.93742948,92.559,92.451,3.87366829]
[1770221284217,3.93742948,92.559,92.493,9.7455]
[1770221284618,3.93742948,92.559,92.481,9.7468]
[1770221285216,3.93742948,92.559,92.478,3.87366829]
[1770221285416,3.93742948,92.555,92.467,9.7482]
[1770221285618,3.93742948,92.555,92.455,3.87366829]
[1770221286522,3.93742948,92.555,92.478,9.747]
[1770221286920,3.93742948,92.555,92.476,3.87366829]
[1770221287223,3.93742948,92.555,92.441,86.36]
[1770221287224,3.93742948,92.555,92.454,3.87366829]
[1770221287420,3.93742948,92.541,92.468,9.7481]
[1770221287621,3.93742948,92.539,92.454,3.87366829]
[1770221287823,3.93742948,92.539,92.432,3.87366829]
[1770221288022,3.93742948,92.53,92.453,9.7497]
[1770221288724,3.93742948,92.525,92.464,9.7485]
[1770221289622,3.93742948,92.547,92.453,3.87366829]
[1770221290125,3.93742948,92.536,92.453,3.87366829]
[1770221290628,3.93742948,92.521,92.453,3.87366829]
[1770221291227,3.93742948,92.544,92.46,3.87366829]
[1770221291525,3.93742948,92.579,92.46,3.87366829]
[1770221291727,3.93742948,92.57,92.489,9.7459]
[1770221291928,3.93742948,92.599,92.49,3.87366829]
[1770221292324,3.93742948,92.579,92.49,3.87366829]
[1770221292523,3.93742948,92.579,92.451,3.87366829]
[1770221293122,3.93742948,92.557,92.451,3.87366829]
[1770221293829,9.7391,92.554,92.483,9.7465]
[1770221294324,3.93742948,92.557,92.493,9.7455]
[1770221294630,3.93742948,92.557,92.475,3.87366829]
[1770221295731,3.93742948,92.556,92.475,3.87366829]
[1770221296427,9.7398,92.548,92.475,3.87366829]
[1770221296631,3.93742948,92.556,92.475,3.87366829]
[1770221297132,9.7397,92.548,92.476,3.87366829]
[1770221297426,3.93742948,92.556,92.476,3.87366829]
[1770221297826,9.7392,92.553,92.481,3.87366829]
[1770221298429,9.7392,92.553,92.491,9.7457]
[1770221298933,9.7395,92.551,92.481,3.87366829]
[1770221299732,8.2130594,92.6,92.488,3.87366829]
[1770221299932,3.93742948,92.601,92.491,3.87366829]
[1770221300436,3.93742948,92.581,92.501,3.87366829]
[1770221300936,3.93742948,92.559,92.431,3.87366829]
[1770221301335,9.7409,92.537,92.47,9.7478]
[1770221301934,3.93742948,92.536,92.46,3.87366829]
[1770221302435,9.7419,92.528,92.469,9.748]
[1770221302834,3.93742948,92.559,92.47,3.87366829]
[1770221303235,3.93742948,92.557,92.47,3.87366829]
[1770221303439,3.93742948,92.555,92.47,3.87366829]
[1770221303842,9.741,92.537,92.471,9.7478]
[1770221304039,9.741,92.537,92.47,3.87366829]
[1770221305339,9.742,92.527,92.47,3.87366829]
[1770221305842,9.741,92.536,92.472,9.7477]
[1770221307735,9.741,92.536,92.47,3.87366829]
[1770221307936,3.92357354,92.551,92.47,3.87366829]
[1770221307937,9.7398,92.547,92.47,3.87366829]
[1770221308332,3.92357354,92.551,92.47,3.87366829]
[1770221308639,9.7398,92.548,92.489,9.7458]
[1770221310540,9.7406,92.54,92.489,9.7458]
[1770221310740,9.7406,92.54,92.47,3.87366829]
[1770221310948,3.92357354,92.539,92.48,9.7468]
[1770221311244,9.7419,92.527,92.47,3.87366829]
[1770221311644,9.7411,92.536,92.478,9.747]
[1770221311838,3.92357354,92.558,92.47,3.87366829]
[1770221312851,9.7398,92.548,92.494,9.7453]
[1770221313243,3.92357354,92.581,92.515,3.78756965]
[1770221313438,3.92357354,92.601,92.515,3.78756965]
[1770221313950,9.7376,92.569,92.515,3.78756965]
[1770221314139,3.92357354,92.579,92.451,3.78756965]
[1770221314339,9.7409,92.537,92.48,9.7468]
[1770221314646,3.92357354,92.551,92.473,3.78756965]
[1770221314843,9.7422,92.525,92.473,3.78756965]
[1770221315051,3.92357354,92.531,92.45,3.78756965]
[1770221315451,151.4713,92.57,92.361,151.8136]
[1770221315452,3.92357354,92.519,92.418,3.78756965]
[1770221316043,9.7449,92.499,92.438,9.7512]
[1770221316242,9.7449,92.499,92.418,3.78756965]
[1770221316447,3.92357354,92.517,92.418,3.78756965]
[1770221316644,9.7459,92.49,92.419,3.78756965]
[1770221317343,9.7447,92.501,92.435,9.7516]
[1770221317547,3.92357354,92.517,92.399,227.4]
[1770221317548,3.92357354,92.517,92.436,3.78756965]
[1770221317949,9.7435,92.513,92.438,3.78756965]
[1770221318548,9.7444,92.504,92.438,3.78756965]
[1770221318748,3.92357354,92.517,92.438,3.78756965]
[1770221318945,3.92357354,92.539,92.438,3.78756965]
[1770221319142,3.92357354,92.539,92.461,3.78756965]
[1770221319347,3.92357354,92.537,92.461,3.78756965]
[1770221319542,3.92357354,92.535,92.461,3.78756965]
[1770221319743,9.7419,92.528,92.461,3.78756965]
[1770221320445,9.7428,92.519,92.461,3.78756965]
[1770221320644,3.92357354,92.533,92.44,3.78756965]
[1770221320841,3.92357354,92.531,92.449,9.7501]
[1770221321049,3.92357354,92.529,92.449,13.53766965]
[1770221321248,9.7425,92.522,92.449,3.78756965]
[1770221321446,9.7425,92.522,92.461,9.7489]
[1770221321947,3.92357354,92.514,92.449,3.78756965]
[1770221322450,3.92357354,92.512,92.441,9.751]
[1770221322644,3.92357354,92.51,92.428,3.78756965]
[1770221323145,3.92357354,92.51,92.433,3.78756965]
[1770221323454,8.24207589,92.509,92.433,3.78756965]
[1770221323652,3.92357354,92.507,92.408,3.78756965]
[1770221323947,3.92357354,92.505,92.408,3.78756965]
[1770221324153,3.92357354,92.503,92.408,3.78756965]
[1770221324448,9.77272175,92.509,92.408,3.78756965]
[1770221324449,3.92357354,92.498,92.408,3.78756965]
[1770221324644,3.92357354,92.484,92.399,227.1]
[1770221324846,9.77272175,92.471,92.387,3.78756965]
[1770221325150,3.92357354,92.469,92.387,3.78756965]
[1770221325349,13.67237354,92.463,92.399,9.7553]
[1770221325550,8.24207589,92.462,92.399,9.7553]
[1770221325750,8.24207589,92.461,92.387,3.78756965]
[1770221325950,8.24207589,92.46,92.399,9.7554]
[1770221326150,8.24207589,92.459,92.387,3.78756965]
[1770221326451,3.92357354,92.463,92.304,151.9064]
[1770221326452,3.92357354,92.445,92.369,9.7586]
[1770221326750,3.92357354,92.443,92.367,3.78756965]
[1770221326954,3.92357354,92.441,92.367,3.78756965]
[1770221327155,3.92357354,92.43,92.358,9.7597]
[1770221327345,3.92357354,92.428,92.358,9.7597]
[1770221327652,8.24207589,92.427,92.358,9.7597]
[1770221327845,8.24207589,92.426,92.358,9.7597]
[1770221328046,3.92357354,92.428,92.358,13.54726965]
[1770221328251,8.23769755,92.427,92.358,13.54726965]
[1770221328555,8.23769755,92.427,92.346,86.3]
[1770221328556,3.92357354,92.428,92.367,9.7587]
[1770221328754,9.7525,92.427,92.359,3.78756965]
[1770221328947,3.92357354,92.425,92.359,3.78756965]
[1770221329151,3.92357354,92.423,92.345,9.761]
[1770221329454,13.67667354,92.421,92.35,9.7606]
[1770221329650,13.67667354,92.421,92.346,3.78756965]
[1770221331154,13.67667354,92.421,92.328,110.4]
[1770221331155,3.92357354,92.404,92.339,3.78756965]
[1770221331555,9.756,92.394,92.339,3.78756965]
[1770221331755,13.67957354,92.394,92.328,110.4]
[1770221332555,13.67957354,92.394,92.33,9.7627]
[1770221332859,3.92357354,92.426,92.329,3.78756965]
[1770221333157,3.92357354,92.424,92.339,3.78756965]
[1770221333451,3.92357354,92.422,92.339,3.78756965]
[1770221333646,3.92357354,92.448,92.339,3.78756965]
[1770221333855,3.69947841,92.446,92.339,3.78756965]
[1770221334052,3.69947841,92.444,92.339,3.78756965]
[1770221334954,3.69947841,92.442,92.339,3.78756965]
[1770221335154,3.69947841,92.44,92.339,3.78756965]
[1770221335556,9.7539,92.414,92.339,3.78756965]
[1770221336456,9.7539,92.414,92.35,3.9625376]
[1770221336957,9.7511,92.44,92.375,3.9625376]
[1770221337155,3.69947841,92.451,92.375,3.9625376]
[1770221337355,3.67102808,92.449,92.345,3.66329943]
[1770221337657,3.67102808,92.411,92.345,3.66329943]
[1770221338461,9.7552,92.402,92.345,3.66329943]
[1770221338655,3.67102808,92.411,92.345,3.66329943]
[1770221339056,9.7571,92.383,92.325,3.66329943]
[1770221339652,9.7582,92.373,92.325,3.66329943]
[1770221339863,3.67102808,92.392,92.325,3.66329943]
[1770221340258,3.67102808,92.392,92.327,3.66329943]
[1770221340466,3.67102808,92.429,92.327,3.66329943]
[1770221340957,3.67102808,92.41,92.327,3.66329943]
[1770221341659,3.67102808,92.428,92.34,3.66329943]
[1770221342059,12.97062645,92.486,92.34,3.66329943]
[1770221342060,3.67102808,92.449,92.368,3.66329943]
[1770221342256,3.67102808,92.459,92.368,3.66329943]
[1770221343164,3.67102808,92.459,92.37,3.66329943]
[1770221343464,3.67102808,92.457,92.37,3.66329943]
[1770221343757,3.67102808,92.439,92.349,3.66329943]
[1770221344165,9.755,92.403,92.342,9.7614]
[1770221344560,3.67102808,92.406,92.329,3.66329943]
[1770221345266,3.67102808,92.395,92.329,3.66329943]
[1770221345564,3.67102808,92.395,92.302,3.66329943]
[1770221345969,3.67102808,92.395,92.317,9.764]
[1770221347260,3.67102808,92.395,92.325,9.7632]
[1770221347454,3.67102808,92.395,92.302,3.66329943]
[1770221347756,3.67102808,92.384,92.302,3.66329943]
[1770221348661,3.67102808,92.35,92.286,229.58448334]
[1770221348867,3.67102808,92.349,92.26,3.66329943]
[1770221349263,3.67102808,92.377,92.298,3.66329943]
[1770221349760,3.67102808,92.359,92.278,3.66329943]
[1770221350167,3.67102808,92.359,92.262,3.66329943]
[1770221350364,9.7622,92.336,92.268,9.7693]
[1770221350666,9.7622,92.336,92.268,3.66329943]
[1770221350863,3.67102808,92.324,92.248,3.66329943]
[1770221351668,9.7648,92.311,92.248,3.66329943]
[1770221351862,3.67102808,92.311,92.248,3.66329943]
[1770221352064,3.67102808,92.311,92.223,3.66329943]
[1770221352261,9.766,92.3,92.225,3.66329943]
[1770221352470,3.67102808,92.311,92.225,3.66329943]
[1770221352967,9.7661,92.298,92.229,3.66329943]
[1770221353272,3.67102808,92.297,92.229,3.66329943]
[1770221353470,3.67102808,92.286,92.211,1.88629644]
[1770221353667,3.67102808,92.286,92.21,3.66329943]
[1770221354168,9.7687,92.274,92.21,3.66329943]
[1770221354562,9.7688,92.272,92.21,3.66329943]
[1770221354769,9.7688,92.272,92.105,152.2351]
[1770221354770,3.67102808,92.271,92.187,3.66329943]
[1770221355270,3.67102808,92.271,92.192,3.66329943]
[1770221355966,3.67102808,92.271,92.204,3.66329943]
[1770221357174,9.7677,92.283,92.204,3.66329943]
[1770221357472,3.67102808,92.291,92.207,3.66329943]
[1770221357674,3.67102808,92.291,92.187,3.66329943]
[1770221357867,3.67102808,92.272,92.194,3.66329943]
[1770221358073,3.67102808,92.299,92.194,3.66329943]
[1770221358575,3.67102808,92.3,92.203,3.66329943]
[1770221358973,3.67102808,92.239,92.121,3.66329943]
[1770221359168,3.67102808,92.209,92.121,3.66329943]
[1770221359365,3.67102808,92.209,92.122,3.66329943]
[1770221359568,3.67102808,92.207,92.132,9.7836]
[1770221359773,3.67102808,92.207,92.122,3.66329943]
[1770221360273,3.67102808,92.207,92.131,9.7837]
[1770221360668,3.67102808,92.207,92.132,3.66329943]
[1770221361067,3.67102808,92.229,92.132,3.66329943]
[1770221362072,3.67102808,92.229,92.161,9.7805]
[1770221362482,3.67102808,92.251,92.155,3.66329943]
[1770221362779,3.67102808,92.279,92.189,3.66329943]
[1770221363276,3.67102808,92.259,92.164,3.66329943]
[1770221363972,3.67102808,92.259,92.188,9.7776]
[1770221364176,3.67102808,92.259,92.164,3.66329943]
[1770221364582,3.83683857,92.279,92.199,3.64659114]
[1770221365176,3.83683857,92.279,92.216,9.7747]
[1770221365371,3.83683857,92.279,92.199,3.64659114]
[1770221365981,3.83683857,92.279,92.215,9.7748]
[1770221366783,3.83683857,92.308,92.199,3.64659114]
[1770221366975,3.83683857,92.329,92.21,8.22480342]
[1770221367171,3.83683857,92.329,92.211,3.64659114]
[1770221367375,3.83683857,92.329,92.247,3.64659114]
[1770221368577,3.83683857,92.329,92.254,9.7707]
[1770221369074,3.83683857,92.326,92.247,3.64659114]
[1770221369275,3.83683857,92.326,92.177,184.5465]
[1770221369276,3.83683857,92.309,92.223,3.64659114]
[1770221369774,3.83683857,92.307,92.223,3.64659114]
[1770221369970,3.83683857,92.307,92.207,86.52]
[1770221370168,3.83683857,92.307,92.19,8.22480342]
[1770221370169,3.83683857,92.299,92.202,3.64659114]
[1770221370372,3.83683857,92.279,92.174,3.64659114]
[1770221370778,3.83683857,92.275,92.174,3.64659114]
[1770221371181,3.83683857,92.275,92.179,3.64659114]
[1770221371979,3.83683857,92.299,92.184,3.64659114]
[1770221372184,3.83683857,92.319,92.24,3.64659114]
[1770221372880,3.83683857,92.319,92.217,3.64659114]
[1770221373276,8.22480342,92.32,92.217,3.64659114]
[1770221373277,3.83683857,92.305,92.23,9.7733]
[1770221374185,3.83683857,92.292,92.191,3.64659114]
[1770221374774,3.83683857,92.273,92.216,9.7747]
[1770221375379,3.83683857,92.273,92.191,3.64659114]
[1770221375582,9.7689,92.272,92.2,9.7765]
[1770221376178,9.7697,92.265,92.2,9.7765]
[1770221376383,3.83683857,92.264,92.191,3.64659114]
[1770221376979,9.7703,92.258,92.194,9.777]
[1770221377286,3.83683857,92.257,92.194,9.777]
[1770221377686,3.83683857,92.257,92.191,3.64659114]
[1770221377687,9.7709,92.253,92.191,3.64659114]
[1770221378185,9.7723,92.24,92.169,3.64659114]
[1770221378584,3.83683857,92.252,92.169,3.64659114]
[1770221379081,13.60933857,92.238,92.169,3.64659114]
[1770221379284,3.83683857,92.237,92.148,3.64659114]
[1770221379587,9.7743,92.221,92.152,9.7815]
[1770221380782,9.7753,92.211,92.148,3.64659114]
[1770221381988,9.7775,92.191,92.129,237.2239]
[1770221382187,9.7775,92.191,92.129,227.44]
[1770221382779,9.7775,92.191,92.13,9.7838]
[1770221382984,3.83683857,92.191,92.106,3.64659114]
[1770221383383,3.83683857,92.191,92.127,9.7841]
[1770221383789,3.83683857,92.191,92.127,13.43069114]
[1770221383988,3.83683857,92.191,92.136,9.7832]
[1770221384289,3.83683857,92.211,92.127,3.64659114]
[1770221384484,3.83683857,92.211,92.162,9.7804]
[1770221384689,11.01232478,92.275,92.147,3.64659114]
[1770221384690,3.83683857,92.249,92.147,3.64659114]
[1770221385585,3.83683857,92.249,92.17,3.64659114]
[1770221386183,3.83683857,92.249,92.186,9.7779]
[1770221386386,3.83683857,92.249,92.17,3.64659114]
[1770221386989,3.83683857,92.245,92.183,9.7782]
[1770221387191,3.83683857,92.245,92.17,3.64659114]
[1770221387489,3.83683857,92.245,92.018,26.65839531]
[1770221387490,3.83683857,92.245,92.146,3.64659114]
[1770221387690,3.83683857,92.245,92.182,9.7783]
[1770221387992,3.83683857,92.245,92.146,3.64659114]
[1770221388493,3.83683857,92.218,92.146,3.64659114]
[1770221389192,3.83683857,92.218,92.161,9.7805]
[1770221389694,3.83683857,92.218,92.146,3.64659114]
[1770221389695,3.83683857,92.218,92.174,9.7792]
[1770221389896,32.43,92.274,92.146,3.64659114]
[1770221389897,3.83683857,92.246,92.146,3.64659114]
[1770221390189,3.83683857,92.244,92.156,3.64659114]
[1770221390388,3.83683857,92.242,92.156,3.64659114]
[1770221390688,12.97062645,92.278,92.156,3.64659114]
[1770221390689,3.83683857,92.238,92.194,9.7771]
[1770221391095,3.83683857,92.238,92.156,3.64659114]
[1770221391394,3.83683857,92.237,92.156,3.64659114]
[1770221391894,3.83683857,92.254,92.156,3.64659114]
[1770221392093,3.83683857,92.252,92.193,9.7771]
[1770221392295,3.83683857,92.248,92.155,3.64659114]
[1770221392492,3.83683857,92.246,92.155,3.64659114]
[1770221392692,3.83683857,92.244,92.194,9.7771]
[1770221393296,3.83683857,92.244,92.202,9.7762]
[1770221393597,3.83683857,92.244,92.174,3.58602757]
[1770221394398,8.1662637,92.243,92.174,3.58602757]
[1770221394592,3.8745611,92.243,92.174,3.58602757]
[1770221394791,3.8745611,92.241,92.174,3.58602757]
[1770221395194,3.8745611,92.239,92.174,3.58602757]
[1770221395394,3.8745611,92.237,92.159,9.7808]
[1770221395696,3.8745611,92.235,92.159,9.7808]
[1770221395897,3.8745611,92.233,92.159,9.7808]
[1770221396197,3.8745611,92.227,92.153,3.20927424]
[1770221396391,8.16916625,92.226,92.153,3.20927424]
[1770221396587,8.16916625,92.225,92.16,9.7806]
[1770221396799,8.16916625,92.224,92.16,9.7806]
[1770221396999,8.16916625,92.223,92.153,3.20927424]
[1770221397295,3.8745611,92.227,92.168,9.7799]
[1770221397499,3.62354238,92.225,92.153,3.20927424]
[1770221397696,3.62354238,92.223,92.16,9.7807]
[1770221397892,3.62354238,92.221,92.153,3.20927424]